bitfinex-derivatives/quotes_ETHF0:USTF0_20241004
["timestamp","ask_amount","ask_price","bid_price","bid_amount"]
[1728048334520,3.8724,2383.6,2383.5,0.41961]
[1728048335009,0.6024,2383.6,2383.5,0.41961]
[1728048335202,7.61558545,2384.3,2383.5,10.1952]
[1728048335402,3.27,2384.1,2384.0,0.41952]
[1728048335706,3.6895,2384.1,2384.0,0.41952]
[1728048335913,3.27,2384.1,2384.0,0.41952]
[1728048337705,3.68951,2384.1,2383.9,0.41954]
[1728048337905,3.27,2384.0,2383.3,1.66778]
[1728048338107,3.27,2383.5,2383.4,0.41963]
[1728048338713,4.5452,2383.5,2383.4,0.41963]
[1728048339510,0.6125,2383.9,2383.4,5.24426]
[1728048339511,3.27,2383.7,2383.4,5.24426]
[1728048339712,3.27,2383.7,2383.6,0.41959]
[1728048341803,0.41957,2383.8,2383.6,0.41959]
[1728048342006,3.27,2384.2,2383.7,4.1952]
[1728048342206,3.27,2384.2,2384.1,0.4195]
[1728048345215,3.27,2384.6,2384.1,4.6139]
[1728048345518,3.27,2384.6,2384.2,0.6142]
[1728048345715,3.27,2384.4,2384.3,0.41947]
[1728048345912,3.27,2384.4,2384.3,4.61387]
[1728048346741,3.27,2384.4,2384.3,0.41947]
[1728048346917,3.27,2384.4,2384.3,4.61387]
[1728048347116,3.27,2384.6,2384.5,0.41943]
[1728048347511,0.6436,2385.0,2384.7,1.0485]
[1728048347714,0.6436,2385.0,2384.5,4.1936]
[1728048347715,3.27,2384.9,2384.8,0.41938]
[1728048347914,3.27,2384.9,2384.7,0.41938]
[1728048347915,3.68937,2384.9,2384.7,0.41938]
[1728048348113,3.27,2384.8,2384.7,0.41938]
[1728048348520,0.6142,2385.1,2385.0,0.41935]
[1728048348824,0.6142,2385.1,2384.8,1.04846]
[1728048348825,1.3011,2385.3,2384.9,1.04841]
[1728048349022,1.3011,2385.3,2385.2,0.41931]
[1728048349212,0.6142,2385.4,2385.2,0.41931]
[1728048349213,3.83318303,2385.5,2385.2,0.41931]
[1728048349429,3.83318303,2385.5,2385.4,0.41927]
[1728048349920,3.83318303,2385.5,2385.1,1.0483]
[1728048350119,3.68928,2385.4,2385.2,0.4193]
[1728048350617,4.8244,2385.3,2384.8,3.822]
[1728048350823,3.27,2385.0,2384.8,3.2078]
[1728048351030,3.27,2385.0,2384.9,0.41936]
[1728048351323,3.68936,2385.0,2384.8,3.62717]
[1728048351722,3.68936,2385.0,2384.8,3.2078]
[1728048352017,3.27,2385.0,2384.9,0.41936]
[1728048353231,0.41933,2385.1,2384.8,3.2078]
[1728048353523,4.5068,2385.2,2385.0,0.41935]
[1728048353733,4.92612,2385.2,2385.0,0.41935]
[1728048353912,4.5068,2385.2,2385.0,0.41935]
[1728048354111,0.41933,2385.1,2385.0,0.41935]
[1728048354713,1.2368,2385.2,2385.1,0.41933]
[1728048356722,0.41924,2385.6,2385.5,0.41926]
[1728048356912,1.08064,2385.6,2385.5,0.41926]
[1728048357130,0.6614,2385.6,2385.5,0.41926]
[1728048357520,0.6614,2385.6,2385.4,0.41926]
[1728048357725,0.6614,2385.6,2385.5,0.41926]
[1728048358217,1.8782,2385.6,2385.5,0.41926]
[1728048358925,2.29744,2385.6,2385.5,0.41926]
[1728048360838,0.41929,2385.4,2384.9,2.74736]
[1728048361123,0.41929,2385.4,2384.8,0.209]
[1728048361124,0.41934,2385.1,2385.0,0.41932]
[1728048361718,1.07973,2385.2,2385.1,0.41933]
[1728048362222,0.41936,2385.0,2384.9,0.41934]
[1728048362625,0.41936,2385.0,2384.9,0.41935]
[1728048363724,0.41937,2384.9,2384.8,0.41937]
[1728048364118,0.41935,2385.0,2384.9,0.41936]
[1728048364322,0.41937,2384.9,2384.6,0.41942]
[1728048364517,0.6164,2385.1,2384.5,1.70969]
[1728048364725,0.41938,2384.9,2384.5,1.70969]
[1728048364923,0.41938,2384.9,2384.8,0.41938]
[1728048365125,0.41935,2385.0,2384.9,0.41936]
[1728048365330,0.41937,2384.9,2384.8,0.41938]
[1728048366629,0.41939,2384.8,2384.7,0.41939]
[1728048366929,0.41944,2384.5,2384.4,0.41943]
[1728048367725,1.2802,2384.6,2384.1,1.71074]
[1728048367929,1.69963,2384.6,2384.5,0.41943]
[1728048368130,1.2802,2384.6,2384.2,1.04872]
[1728048368331,1.2802,2384.6,2384.5,0.41943]
[1728048370457,0.6323,2384.6,2384.5,0.41943]
[1728048370731,0.41937,2384.9,2384.5,0.41943]
[1728048370732,0.6421,2384.9,2384.8,0.41938]
[1728048371335,1.02982,2385.2,2384.8,0.41938]
[1728048371336,1.02982,2385.2,2385.1,0.41933]
[1728048371530,0.6105,2385.2,2385.0,0.41934]
[1728048371736,1.02982,2385.2,2385.0,0.41934]
[1728048372236,1.69322,2385.2,2384.8,0.41938]
[1728048372423,3.27,2385.1,2384.8,0.41938]
[1728048372620,0.41936,2384.9,2384.8,0.41938]
[1728048372829,0.41938,2384.8,2384.7,0.41939]
[1728048373132,0.6421,2384.8,2384.3,1.04868]
[1728048373432,1.7305,2384.7,2384.6,0.41942]
[1728048373729,1.7305,2384.7,2384.5,0.41942]
[1728048373936,1.7305,2384.7,2384.6,0.41942]
[1728048374130,1.3111,2384.7,2384.6,0.41942]
[1728048374733,0.41942,2384.6,2384.5,0.41942]
[1728048374933,3.27,2384.6,2384.2,0.6007]
[1728048375139,0.41951,2384.1,2384.0,0.41952]
[1728048375336,1.04859,2384.5,2383.8,3.8319]
[1728048375337,3.27,2384.2,2383.8,3.8319]
[1728048375632,1.04877,2384.1,2383.8,0.41955]
[1728048375824,0.41954,2383.9,2383.8,0.41955]
[1728048376030,1.04931,2384.1,2383.7,0.41957]
[1728048376334,1.2233,2384.3,2383.7,1.04894]
[1728048376538,0.41949,2384.2,2384.1,0.4195]
[1728048376737,1.64278,2384.3,2383.8,1.04889]
[1728048377036,0.41949,2384.2,2384.1,0.4195]
[1728048377423,4.31872,2384.2,2383.8,0.41954]
[1728048377635,3.27,2384.2,2383.6,0.6017]
[1728048377823,0.41955,2383.9,2383.7,0.41956]
[1728048378024,0.664,2383.8,2383.7,0.41956]
[1728048378636,0.664,2383.8,2383.3,0.6359]
[1728048378828,1.03349,2383.7,2383.3,0.6359]
[1728048379137,0.4196,2383.6,2383.5,0.41961]
[1728048379523,0.6139,2383.7,2383.6,0.41959]
[1728048379524,1.03349,2383.7,2383.6,0.41959]
[1728048382039,0.41961,2383.5,2383.4,0.41961]
[1728048382340,0.6139,2383.7,2383.2,4.88306]
[1728048382636,0.6139,2383.7,2383.2,1.67526]
[1728048382844,3.27,2383.4,2383.2,0.41966]
[1728048383032,0.41964,2383.3,2383.2,0.41966]
[1728048383437,0.41966,2383.3,2383.2,0.41966]
[1728048383840,3.68963,2383.4,2382.9,1.288]
[1728048384139,0.6139,2383.7,2383.5,0.41961]
[1728048384140,1.03349,2383.7,2383.5,0.41961]
[1728048384336,1.03349,2383.7,2383.6,0.41959]
[1728048384337,0.6139,2383.7,2383.6,0.41959]
[1728048384542,3.6895,2384.2,2383.7,1.04894]
[1728048384735,3.27,2384.0,2383.5,3.2078]
[1728048384935,0.41955,2383.9,2383.5,3.2078]
[1728048385139,0.41955,2383.9,2383.4,1.9157]
[1728048385140,3.27,2383.8,2383.4,1.2753]
[1728048385438,3.68953,2384.0,2383.7,0.41957]
[1728048385634,3.68953,2384.0,2383.8,0.41955]
[1728048385829,3.2078,2384.1,2383.5,7.52683]
[1728048386038,6.4778,2384.1,2383.4,4.5453]
[1728048386243,6.89732,2384.1,2383.5,0.41961]
[1728048386442,6.89732,2384.1,2383.8,0.41955]
[1728048386845,6.4778,2384.1,2383.4,4.5453]
[1728048387142,0.41957,2383.8,2383.5,0.4196]
[1728048387341,3.68958,2383.7,2383.5,0.4196]
[1728048387536,4.35658,2383.7,2383.5,0.4196]
[1728048387746,3.27,2383.6,2382.9,4.46607]
[1728048387942,0.41962,2383.5,2383.3,0.41964]
[1728048388132,0.41962,2383.5,2383.1,0.6054]
[1728048388133,4.9797,2383.6,2383.1,0.6054]
[1728048388339,4.5601,2383.6,2383.5,0.41961]
[1728048388946,3.937,2383.7,2383.2,0.6602]
[1728048389241,4.5818,2383.7,2383.2,0.6602]
[1728048389437,0.6453,2383.9,2383.3,1.04912]
[1728048389646,0.6453,2383.9,2383.3,1.66442]
[1728048389838,3.68957,2383.8,2383.6,0.41959]
[1728048390034,3.68957,2383.8,2383.4,0.41963]
[1728048390035,3.27,2383.8,2383.4,0.41963]
[1728048390295,3.68957,2383.8,2383.6,0.41959]
[1728048390545,0.41957,2383.7,2383.3,0.6153]
[1728048390936,3.27,2383.8,2383.2,3.868]
[1728048391145,3.68957,2383.8,2383.6,0.41959]
[1728048391437,0.41957,2383.7,2383.5,0.4196]
[1728048392039,0.41957,2383.7,2383.2,4.91714]
[1728048392346,0.41957,2383.7,2383.5,0.4196]
[1728048393241,0.41957,2383.7,2383.6,0.41959]
[1728048393442,0.41957,2383.8,2383.6,0.41958]
[1728048393838,0.41957,2383.8,2383.3,1.04912]
[1728048394038,0.41957,2383.8,2383.7,0.41957]
[1728048394240,0.209,2384.5,2383.6,3.2078]
[1728048394450,0.209,2384.5,2384.0,0.41951]
[1728048394451,0.41951,2384.1,2384.0,0.41951]
[1728048394641,0.41951,2384.1,2383.7,1.2661]
[1728048394642,3.6895,2384.2,2383.8,0.41956]
[1728048394843,3.27,2384.0,2383.7,0.6462]
[1728048395039,3.68956,2383.8,2383.7,0.41957]
[1728048395444,3.27,2383.8,2383.7,0.41957]
[1728048395638,4.5533,2383.9,2383.8,0.41956]
[1728048395841,4.97284,2383.9,2383.8,0.41956]
[1728048396241,4.5533,2383.9,2383.8,0.41956]
[1728048396453,0.6304,2383.9,2383.8,0.41956]
[1728048396640,3.27,2384.1,2384.0,0.41952]
[1728048396838,3.27,2384.1,2383.8,0.41956]
[1728048396839,0.6326,2384.2,2384.1,0.4195]
[1728048397142,1.05209,2384.2,2384.1,0.4195]
[1728048398150,0.6326,2384.2,2384.1,0.4195]
[1728048398841,0.6326,2384.2,2383.9,0.6533]
[1728048399050,3.27,2384.1,2383.9,0.6533]
[1728048399440,3.68951,2384.1,2384.0,0.41952]
[1728048400245,3.68951,2384.1,2383.9,1.07283]
[1728048400246,0.41952,2384.0,2383.9,1.07283]
[1728048400548,3.68951,2384.1,2384.0,0.41952]
[1728048401248,3.9256,2384.1,2383.9,0.6533]
[1728048401446,4.34512,2384.1,2384.0,0.41952]
[1728048402043,8.12,2384.1,2383.4,0.209]
[1728048402243,3.27,2383.8,2383.5,4.88352]
[1728048402447,3.27,2383.8,2383.7,0.41957]
[1728048403137,3.68953,2384.0,2383.9,0.41952]
[1728048403341,3.27,2384.0,2383.9,0.41952]
[1728048404346,0.6556,2384.1,2384.0,0.41952]
[1728048405552,0.41948,2384.3,2384.2,0.41948]
[1728048405750,1.04864,2384.4,2383.9,1.04885]
[1728048405751,1.69316,2384.4,2384.3,0.41947]
[1728048406671,1.2737,2384.4,2384.3,0.41947]
[1728048407247,4.35123,2384.6,2384.4,0.41945]
[1728048407443,4.35123,2384.6,2384.5,0.41943]
[1728048407850,3.9318,2384.6,2384.5,0.41943]
[1728048408063,0.6104,2384.7,2384.6,0.41942]
[1728048408358,6.89719,2384.8,2384.7,0.4194]
[1728048408551,3.27,2384.8,2384.7,0.4194]
[1728048409447,2.31848,2385.0,2384.7,4.1936]
[1728048409448,4.95946,2385.0,2384.7,4.1936]
[1728048409644,4.5401,2385.0,2384.9,0.41936]
[1728048410359,0.41939,2384.8,2384.7,0.41939]
[1728048410647,4.31846,2384.8,2384.3,0.6137]
[1728048410851,0.41943,2384.6,2384.5,0.41943]
[1728048411155,3.27,2384.8,2384.3,1.66238]
[1728048411348,3.27,2384.8,2384.7,0.4194]
[1728048411750,3.68938,2384.8,2384.7,0.4194]
[1728048412246,3.27,2384.8,2384.6,0.4194]
[1728048412449,0.41944,2384.5,2384.4,0.41944]
[1728048413156,0.6621,2384.6,2384.5,0.41943]
[1728048413449,3.27,2384.9,2384.4,4.1936]
[1728048413656,3.27,2384.9,2384.4,1.04863]
[1728048413657,3.9321,2384.9,2384.4,1.04863]
[1728048414154,3.27,2384.5,2384.3,0.6137]
[1728048414350,3.68944,2384.5,2384.4,0.41945]
[1728048414544,4.96754,2384.5,2384.4,0.41945]
[1728048414946,4.5481,2384.5,2384.4,0.41945]
[1728048416158,1.2781,2384.5,2384.4,0.41945]
[1728048416550,0.6523,2384.5,2384.4,0.41945]
[1728048416948,1.0261,2384.7,2384.6,0.41942]
[1728048417149,0.41942,2384.6,2384.5,0.41942]
[1728048417449,4.29611,2384.7,2384.6,0.41942]
[1728048418155,3.8767,2384.7,2384.3,1.66235]
[1728048418362,4.29611,2384.7,2384.6,0.41942]
[1728048419857,0.41943,2384.6,2384.5,0.41942]
[1728048420255,4.29611,2384.7,2384.6,0.41942]
[1728048420553,4.29611,2384.7,2384.3,1.66237]
[1728048420554,0.41943,2384.6,2384.5,0.41942]
[1728048420753,0.41943,2384.6,2384.4,0.41944]
[1728048420754,0.41945,2384.5,2384.4,0.41944]
[1728048420953,4.95135,2384.5,2384.4,0.41944]
[1728048421563,4.5319,2384.5,2384.1,1.67553]
[1728048421856,4.95134,2384.5,2384.4,0.41945]
[1728048423147,1.2619,2384.5,2384.4,0.41945]
[1728048424156,0.6132,2384.5,2384.4,0.41945]
[1728048426654,1.2218,2384.7,2384.4,0.41945]
[1728048426860,1.2218,2384.7,2384.6,0.41942]
[1728048427966,0.6067,2384.7,2384.6,0.41942]
[1728048428270,0.6476,2384.8,2384.7,0.4194]
[1728048429467,1.06699,2384.8,2384.7,0.4194]
[1728048429661,1.06699,2384.8,2384.4,1.04863]
[1728048429662,1.04851,2384.7,2383.9,7.4678]
[1728048429964,3.68947,2384.3,2384.2,0.41947]
[1728048430164,0.41951,2384.1,2384.0,0.41952]
[1728048430666,0.41951,2384.1,2383.9,3.62732]
[1728048431072,0.4195,2384.1,2383.9,3.2078]
[1728048431267,5.1339,2384.2,2384.0,0.41952]
[1728048431268,5.5534,2384.2,2384.0,0.41952]
[1728048431565,5.1339,2384.2,2384.1,0.4195]
[1728048432061,1.8639,2384.2,2384.1,0.4195]
[1728048432769,3.6894,2384.7,2384.6,0.41942]
[1728048432961,0.6641,2384.7,2384.6,0.41942]
[1728048434163,1.2777,2385.0,2384.6,0.41942]
[1728048434468,1.9418,2385.0,2384.9,0.41936]
[1728048434667,1.2796,2385.0,2384.9,0.41936]
[1728048438083,3.2078,2385.1,2385.0,0.41935]
[1728048438477,3.2078,2385.1,2385.0,4.61215]
[1728048438876,1.2157,2385.3,2385.2,0.41931]
[1728048441775,4.29294,2385.6,2385.0,0.41935]
[1728048442069,4.29294,2385.6,2385.3,0.41928]
[1728048442070,0.41927,2385.5,2385.3,0.41928]
[1728048442274,0.41927,2385.5,2385.0,0.41935]
[1728048442570,0.41927,2385.5,2385.3,0.41928]
[1728048442875,1.04825,2385.3,2384.7,0.7091]
[1728048443077,1.04825,2385.3,2384.5,1.65666]
[1728048443078,0.4194,2384.7,2384.6,0.41941]
[1728048443573,1.241,2384.7,2384.6,0.41941]
[1728048443767,1.241,2384.7,2384.4,3.2078]
[1728048444070,1.66041,2384.7,2384.5,0.41942]
[1728048444770,1.241,2384.7,2384.6,0.41942]
[1728048446165,1.9077,2385.1,2384.6,4.1936]
[1728048446480,2.32703,2385.1,2385.0,0.41935]
[1728048446671,0.41935,2385.0,2384.9,0.41935]
[1728048446971,2.32704,2385.1,2385.0,0.41935]
[1728048447471,2.32703,2385.1,2385.0,0.41935]
[1728048447674,0.41935,2385.0,2384.9,0.41935]
[1728048447877,0.41939,2384.8,2384.7,0.4194]
[1728048448078,1.04842,2384.9,2384.6,0.4194]
[1728048448376,1.04842,2384.9,2384.4,3.2078]
[1728048448678,0.4194,2384.7,2384.6,0.41941]
[1728048448878,0.41938,2384.8,2384.7,0.41939]
[1728048449278,3.27,2385.0,2384.4,3.2078]
[1728048449477,1.07451,2384.7,2384.6,0.41941]
[1728048450714,0.6551,2384.7,2384.6,0.41941]
[1728048450987,1.0745,2384.7,2384.6,0.41941]
[1728048451182,0.6551,2384.7,2384.6,0.41941]
[1728048451386,1.0745,2384.7,2384.6,0.41941]
[1728048452080,0.6551,2384.7,2384.6,0.41941]
[1728048453271,6.91438854,2385.1,2385.0,0.41935]
[1728048453477,6.91438854,2385.1,2384.7,1.0485]
[1728048453478,1.2924,2385.1,2384.7,1.0485]
[1728048453675,0.41935,2385.0,2384.9,0.41935]
[1728048454576,0.41935,2385.0,2384.7,1.0485]
[1728048454577,0.41935,2385.0,2384.8,0.41938]
[1728048454782,0.41935,2385.0,2384.7,1.0485]
[1728048454783,0.41935,2385.0,2384.9,0.41936]
[1728048455080,1.71174,2385.1,2385.0,0.41935]
[1728048455682,0.41939,2384.8,2384.7,0.41938]
[1728048456183,0.41936,2385.0,2384.9,0.41935]
[1728048456380,4.57965854,2385.1,2385.0,0.41935]
[1728048456381,1.71174,2385.1,2385.0,0.41935]
[1728048456583,1.71173,2385.1,2385.0,0.41935]
[1728048457673,1.2924,2385.1,2385.0,0.41935]
[1728048458395,0.41937,2384.9,2384.8,0.41936]
[1728048458888,0.41936,2385.0,2384.9,0.41935]
[1728048459975,0.41938,2384.9,2384.8,0.41937]
[1728048460171,4.5002,2385.1,2384.5,1.04859]
[1728048460172,5.54857,2385.1,2384.5,1.04859]
[1728048460377,5.54857,2385.1,2385.0,0.41935]
[1728048460378,1.71173,2385.1,2385.0,0.41935]
[1728048460982,1.2924,2385.1,2385.0,0.41935]
[1728048461383,1.71173,2385.1,2385.0,0.41935]
[1728048463891,1.2924,2385.1,2385.0,0.41935]
[1728048464282,0.6523,2385.1,2385.0,0.41935]
[1728048466989,0.6253,2385.2,2385.1,0.41933]
[1728048467194,1.2797,2385.4,2385.1,0.41933]
[1728048467498,1.02724,2385.6,2385.5,0.41926]
[1728048467693,0.608,2385.6,2385.5,0.41926]
[1728048468210,1.299,2385.7,2385.6,0.41924]
[1728048468591,1.71822,2385.7,2385.6,0.41924]
[1728048468793,1.299,2385.7,2385.6,0.41924]
[1728048470392,0.41928,2385.4,2385.3,0.41928]
[1728048470689,8.761,2385.7,2385.0,0.6194]
[1728048470690,3.27,2385.5,2385.0,0.6194]
[1728048470909,0.6228,2385.4,2385.1,1.04833]
[1728048471092,0.6228,2385.4,2385.3,0.41929]
[1728048471493,1.04207,2385.4,2385.3,0.41929]
[1728048471688,0.6228,2385.4,2385.3,0.41929]
[1728048471998,1.04207,2385.4,2385.3,0.41929]
[1728048472202,0.6228,2385.4,2385.0,1.66777]
[1728048472390,1.08179,2385.3,2385.2,0.41931]
[1728048472589,0.6625,2385.3,2385.2,0.41931]
[1728048480502,1.08179,2385.3,2385.2,0.41931]
[1728048480714,5.27459,2385.3,2385.2,0.41931]
[1728048481804,0.6625,2385.3,2385.2,0.41931]
[1728048482002,1.08179,2385.3,2385.2,0.41931]
[1728048482498,0.6625,2385.3,2385.2,0.41931]
[1728048485417,8.1253,2385.3,2384.7,2.19394]
[1728048485613,8.1253,2385.3,2384.8,1.04844]
[1728048485614,0.613,2385.2,2384.8,1.04844]
[1728048485815,1.03232,2385.2,2385.1,0.41933]
[1728048486311,0.613,2385.2,2385.1,0.41933]
[1728048486512,0.613,2385.2,2384.8,1.04844]
[1728048486716,1.03232,2385.2,2385.1,0.41933]
[1728048486918,1.03232,2385.2,2384.6,4.9674]
[1728048486919,0.613,2385.2,2384.6,4.9674]
[1728048487113,3.27,2385.0,2384.6,0.6489]
[1728048487424,4.31848,2384.8,2384.5,3.62723]
[1728048487620,0.6273,2384.7,2384.2,0.7169]
[1728048487828,0.6273,2384.7,2384.5,0.41942]
[1728048488036,0.6273,2384.7,2384.1,4.25656]
[1728048488224,0.41945,2384.5,2384.3,0.41945]
[1728048488523,0.41948,2384.3,2384.2,0.41949]
[1728048488715,0.41948,2384.3,2383.9,1.66873]
[1728048488915,0.6273,2384.2,2384.0,0.41951]
[1728048489119,0.4195,2384.1,2383.9,0.41953]
[1728048489321,3.8973,2384.2,2383.8,3.2078]
[1728048489523,0.6273,2384.2,2384.1,0.4195]
[1728048490024,0.41952,2384.1,2383.9,0.41953]
[1728048490221,0.6273,2384.2,2383.8,3.2078]
[1728048490222,0.41954,2383.9,2383.8,3.2078]
[1728048490527,0.41953,2384.0,2383.9,0.41954]
[1728048491227,4.94604,2384.2,2383.9,0.41954]
[1728048491423,0.41952,2384.0,2383.9,0.41954]
[1728048491627,4.94604,2384.2,2383.8,3.62734]
[1728048491929,1.02784,2383.9,2383.8,3.2078]
[1728048492315,5.83564,2383.9,2383.8,3.2078]
[1728048492622,5.4161,2383.9,2383.5,3.2078]
[1728048492824,5.4161,2383.9,2383.8,0.41956]
[1728048492825,1.64045,2383.9,2383.8,0.41956]
[1728048493023,1.2209,2383.9,2383.8,0.41956]
[1728048493534,0.6083,2383.9,2383.8,0.41956]
[1728048496624,0.6083,2383.9,2383.5,7.1394]
[1728048496625,0.6083,2383.9,2383.5,3.2078]
[1728048496826,0.41956,2383.8,2383.7,0.41957]
[1728048497127,0.6083,2383.9,2383.7,0.41957]
[1728048497329,1.02785,2383.9,2383.7,0.41957]
[1728048497631,0.6083,2383.9,2383.8,0.41956]
[1728048497824,0.41951,2384.1,2383.6,4.31898]
[1728048498031,1.9077,2384.2,2384.0,0.41952]
[1728048498530,0.41951,2384.1,2383.9,0.41953]
[1728048499133,1.9077,2384.2,2383.6,4.31898]
[1728048499438,0.4195,2384.1,2384.0,0.41952]
[1728048499635,2.32719,2384.2,2384.0,0.41952]
[1728048499835,0.4195,2384.1,2384.0,0.41952]
[1728048500028,0.4195,2384.1,2383.9,0.41953]
[1728048500230,0.4195,2384.1,2383.8,0.6176]
[1728048500432,0.4195,2384.1,2384.0,0.41952]
[1728048500643,1.04855,2384.6,2384.1,0.4195]
[1728048500931,2.36833,2384.6,2384.4,0.41944]
[1728048501231,0.41946,2384.4,2384.2,0.41948]
[1728048501435,6.26746,2384.6,2384.0,0.41951]
[1728048501436,0.41951,2384.1,2384.0,0.41951]
[1728048501637,3.27,2384.4,2383.8,3.8876]
[1728048501827,5.2189,2384.6,2384.4,0.41944]
[1728048502028,0.41943,2384.5,2384.4,0.41944]
[1728048502241,1.9489,2384.6,2384.5,0.41943]
[1728048502732,2.36832,2384.6,2384.4,0.41945]
[1728048503736,2.36832,2384.6,2384.4,0.41944]
[1728048504332,1.9489,2384.6,2384.3,0.6402]
[1728048504532,2.36833,2384.6,2384.5,0.41943]
[1728048507230,0.41945,2384.5,2384.4,0.41944]
[1728048507538,0.41945,2384.5,2384.4,0.41945]
[1728048507940,1.9489,2384.6,2384.3,0.6402]
[1728048507941,2.36833,2384.6,2384.5,0.41943]
[1728048508256,0.41945,2384.5,2384.4,0.41945]
[1728048508630,1.9489,2384.6,2384.3,0.6402]
[1728048508838,1.9489,2384.6,2384.1,3.2078]
[1728048509131,3.27,2384.5,2384.1,3.2078]
[1728048509335,0.41949,2384.2,2384.1,0.41949]
[1728048509840,1.04865,2384.4,2383.9,1.71314]
[1728048510034,0.41948,2384.3,2384.2,0.41948]
[1728048512142,1.04865,2384.4,2384.3,0.41945]
[1728048512143,0.41947,2384.4,2384.3,0.41945]
[1728048513337,0.41947,2384.4,2384.1,0.41949]
[1728048513338,0.4195,2384.2,2384.1,0.41949]
[1728048513941,0.41949,2384.3,2384.2,0.41947]
[1728048516744,0.41946,2384.4,2384.3,0.41945]
[1728048517045,1.04859,2384.5,2384.0,1.04881]
[1728048517340,1.04859,2384.5,2384.3,0.41946]
[1728048517341,0.41947,2384.4,2384.3,0.41946]
[1728048518343,0.41945,2384.4,2384.3,0.41946]
[1728048518538,2.99745,2384.6,2384.1,1.04876]
[1728048518851,1.9489,2384.6,2384.0,1.04881]
[1728048519036,0.41945,2384.5,2384.4,0.41944]
[1728048519839,0.41946,2384.4,2384.3,0.41945]
[1728048520743,0.4195,2384.2,2384.1,0.41949]
[1728048520943,0.41953,2384.0,2383.9,0.41953]
[1728048521238,0.41956,2383.9,2383.8,0.41954]
[1728048521639,0.41953,2384.0,2383.9,0.41952]
[1728048522035,0.41955,2383.9,2383.8,0.41954]
[1728048523345,0.41954,2384.0,2383.9,0.41953]
[1728048524541,1.8961,2384.1,2383.7,1.04894]
[1728048524736,2.31562,2384.1,2384.0,0.41952]
[1728048526332,0.41954,2384.0,2383.9,0.41952]
[1728048527242,0.41955,2383.9,2383.8,0.41954]
[1728048527452,0.41953,2384.0,2383.9,0.41952]
[1728048527939,2.31561,2384.1,2384.0,0.41952]
[1728048528142,1.8961,2384.1,2384.0,0.41952]
[1728048528851,1.2686,2384.1,2384.0,0.41952]
[1728048529045,1.6881,2384.1,2384.0,0.41952]
[1728048529745,1.2686,2384.1,2383.8,0.6204]
[1728048529934,1.68811,2384.1,2384.0,0.41952]
[1728048530346,0.6172,2384.3,2383.8,8.1471]
[1728048530548,0.41949,2384.2,2384.1,0.41949]
[1728048532141,0.4195,2384.2,2384.1,0.4195]
[1728048532345,4.85856,2384.4,2384.2,0.41949]
[1728048532543,4.85856,2384.4,2384.3,0.41947]
[1728048532734,0.4195,2384.2,2384.1,0.4195]
[1728048532936,0.41951,2384.1,2384.0,0.41951]
[1728048533340,0.41949,2384.2,2384.1,0.41949]
[1728048534539,0.41948,2384.3,2384.2,0.41948]
[1728048534943,4.4391,2384.4,2383.9,1.04885]
[1728048535164,4.4391,2384.4,2383.8,3.8282]
[1728048535165,1.65076,2384.4,2384.3,0.41947]
[1728048535354,0.6153,2384.5,2384.1,4.25656]
[1728048535563,3.69780464,2384.7,2384.2,1.0487]
[1728048535846,1.964,2384.8,2384.7,0.4194]
[1728048536042,2.38338,2384.8,2384.7,0.4194]
[1728048536250,1.964,2384.8,2384.7,0.4194]
[1728048536550,2.38338,2384.8,2384.7,0.4194]
[1728048536747,1.964,2384.8,2384.4,1.04863]
[1728048536952,0.4194,2384.7,2384.6,0.4194]
[1728048537147,1.964,2384.8,2384.4,1.04863]
[1728048537341,2.38339,2384.8,2384.7,0.4194]
[1728048537542,1.964,2384.8,2384.7,0.4194]
[1728048537850,2.38338,2384.8,2384.7,0.4194]
[1728048538253,2.38338,2384.8,2384.6,0.4194]
[1728048538456,2.38338,2384.8,2384.7,0.4194]
[1728048539048,1.964,2384.8,2384.2,0.6445]
[1728048539348,0.41941,2384.7,2384.6,0.41941]
[1728048539545,2.38339,2384.8,2384.2,2.30102]
[1728048539749,2.38339,2384.8,2384.7,0.4194]
[1728048540542,0.41936,2384.9,2384.4,1.04863]
[1728048540747,0.41936,2384.9,2384.8,0.41937]
[1728048541146,3.27,2384.9,2384.6,0.6078]
[1728048541447,0.41939,2384.8,2384.7,0.41939]
[1728048541641,3.68937,2384.9,2384.8,0.41938]
[1728048541847,3.27,2384.9,2384.6,0.6078]
[1728048542051,0.41938,2384.8,2384.7,0.41939]
[1728048542252,3.68937,2384.9,2384.8,0.41938]
[1728048542445,0.41936,2385.0,2384.9,0.41936]
[1728048542646,0.41936,2385.0,2384.6,1.65634]
[1728048542647,1.04837,2385.0,2384.6,0.4194]
[1728048542853,3.27,2384.7,2384.6,0.4194]
[1728048543049,3.6894,2384.7,2384.6,0.4194]
[1728048543253,4.5243,2384.7,2384.6,0.4194]
[1728048543453,4.9437,2384.7,2384.6,0.4194]
[1728048543656,4.5243,2384.7,2384.6,0.4194]
[1728048544876,4.5243,2384.7,2384.3,1.2365]
[1728048545160,3.68944,2384.5,2384.4,0.41945]
[1728048546161,0.41946,2384.4,2384.3,0.41946]
[1728048546756,3.68945,2384.5,2384.4,0.41945]
[1728048547858,3.27,2384.5,2384.4,0.41945]